Cogmind - Beta 16 @@@ ROGUE MODE // 2026.01.10 @ 16:44:54 Player: Mojosoup Result: Destroyed by D-53 Grenadier with Mini Grenade Launcher Performance ------------- Evolutions (0) 0 Regions Visited (2) 400 Robots Destroyed (11) 55 Value Destroyed (295) 295 Prototype IDs (2) 40 Alien Tech Used (0) 0 Bonus (0) 0 TOTAL SCORE: 790 Bonus ------- None Cogmind --------- Core Integrity 0/250 Matter 289/300 Energy 265/265 System Corruption 0% Temperature Cool (0) Movement Walking (190) Ox1 Location -10/Mines Parts ------- > --- POWER (1) -------- Improved Ion Engine > --- PROPULSION (2) --- Carbon-fiber Leg > --- UTILITY (2) ------ Large Storage Unit Signal Interpreter > --- WEAPON (2) ------- Mining Claw > --- INVENTORY (15) --- Flight Unit Flight Unit Improved Heat Sink Medium Storage Unit Structural Scanner Structural Scanner Experimental Sensor Array ECM Suite Utility Shielding Light Armor Plating Grenade Launcher Peak State ------------ > --- POWER ------------ Improved Ion Engine > --- PROPULSION ------- Light Treads Carbon-fiber Leg > --- UTILITY ---------- Large Storage Unit Signal Interpreter > --- WEAPON ----------- EM Pulse Gun Grenade Launcher > --- INVENTORY -------- Flight Unit Flight Unit Improved Heat Sink Medium Storage Unit Structural Scanner Experimental Sensor Array ECM Suite Utility Shielding Light Armor Plating Light Assault Rifle Mining Claw [Rating: 12] Favorites ----------- Power Improved Ion Engine Engine Improved Ion Engine Propulsion Compact Wheel Treads Light Treads Leg Carbon-fiber Leg Wheel Compact Wheel Flight Unit Flight Unit Utility Signal Interpreter Storage Large Storage Unit Processor Signal Interpreter Weapon Light Assault Rifle Energy Gun EM Pulse Gun Ballistic Gun Light Assault Rifle Launcher Grenade Launcher Slashing Weapon Mining Claw Build | -11 -10 -10 ------- Run | Yrd Mat Min Slots Evolved . | . . . Power . | . . . Propulsion . | . . . Utility . | . . . Weapon . | . . . Parts Attached 22 | 7 7 8 Power 3 | 1 1 1 Engine 3 | 1 1 1 Core . | . . . Reactor . | . . . Propulsion 8 | 2 2 4 Treads 1 | . . 1 Leg 1 | . . 1 Wheel 4 | 2 2 . Hover . | . . . Flight 2 | . . 2 Utility 4 | 1 2 1 Device . | . . . Storage 3 | 1 1 1 Processor 1 | . 1 . Hackware . | . . . Protection . | . . . Artifact . | . . . Weapon 7 | 3 2 2 Energy Gun 2 | 1 . 1 Energy Cannon . | . . . Ballistic Gun 3 | 2 1 . Ballistic Cannon . | . . . Launcher 1 | . 1 . Special Weapon . | . . . Impact Weapon . | . . . Slashing Weapon 1 | . . 1 Piercing Weapon . | . . . Special Melee Weapon . | . . . Unidentified Prototypes . | . . . Parts Lost 9 | . 4 5 Power 1 | . 1 . Propulsion 4 | . 1 3 Utility . | . . . Weapon 4 | . 2 2 Highest Loss Streak 4 | . 4 3 To Critical Strikes . | . . . Average Backups 9 | 2 8 11 Power . | . . . Propulsion 2 | 1 2 1 Utility 5 | . 3 6 Weapon 2 | . 2 2 Tool/Special . | . . . Unused Backups 13 | . 5 8 Power . | . . . Propulsion 4 | . 4 . Utility 9 | . 1 8 Weapon . | . . . Tool/Special . | . . . Average Slot Usage (%) 90 | . 95 86 Engine 13 | . 13 14 Treads 7 | . . 12 Leg 2 | . . 5 Wheel 13 | . 27 1 Storage 14 | . 14 14 Processor 13 | . 12 14 Energy Gun 7 | . . 13 Ballistic Gun 12 | . 24 2 Launcher 4 | . . 6 Peak Build Rating 12 | 6 8 12 Average Rating 8 | 4 7 9 On Entrance 4 | . 6 7 Avg Prop Armor Cover (%) 7 | . . 7 Naked Turns . | . . . Heaviest Build 32 | 13 29 32 Greatest Support 32 | 32 32 26 Greatest Overweight (x) 1 | 1 1 1 Average Overweight (x) . | . . . Largest Inventory Capacity 15 | 8 15 15 Average Capacity 13 | 7 12 14 Most Carried 12 | 6 11 12 Average Carried 9 | 3 8 11 Final Capacity 15 | 8 15 15 Final Carried 11 | 6 9 11 Class Distribution -------------------- 100% | Mutant Dominant Class ---------------- Mutant | -10/Materials Mutant | -10/Mines Resources | -11 -10 -10 ----------- Run | Yrd Mat Min Matter Collected 633 | 222 276 135 Remotely . | . . . Salvage Created 355 | . 355 . Parts 23 | . 23 . Haulers Intercepted . | . . . Recyclers Shooed . | . . . Parts Field Recycled . | . . . Retrieved Matter . | . . . Parts Self-Destructed . | . . . Prevented . | . . . Parts Restored . | . . . Kills | -11 -10 -10 ------- Run | Yrd Mat Min Combat Hostiles Destroyed 6 | . 6 . Guns 6 | . 6 . Classes Destroyed 6 | . 6 . Worker 1 | . 1 . Builder 1 | . 1 . Tunneler 1 | . 1 . Operator 1 | . 1 . Watcher 1 | . 1 . Grunt 6 | . 6 . Best Kill Streak 3 | . 3 . Combat Bots Only 2 | . 2 . Max Kills in Single Turn 3 | . 3 . Gunslinging . | . . . Exploded . | . . . Melee . | . . . Uniques/NPCs Destroyed . | . . . Combat | -11 -10 -10 -------- Run | Yrd Mat Min Hostile Shots Fired 72 | . 56 16 Missed 14 | . 13 1 Hits 58 | . 43 15 Projectile 58 | . 43 15 AOE 12 | . . 12 Damage Taken 1048 | . 561 487 Core 264 | . 130 134 Absorbed by Shields . | . . . Core Remaining (%) 100 | 100 . . Volleys Fired 46 | . 39 7 Largest 2 | . 2 2 Hottest 60 | . 40 60 Shots Fired 78 | . 65 13 Gun 73 | . 60 13 Cannon . | . . . Launcher 5 | . 5 . Special . | . . . Kinetic 66 | . 60 6 Thermal . | . . . Explosive 5 | . 5 . Electromagnetic 7 | . . 7 Robot Hit Streak 18 | . 15 18 Robot Miss Streak 4 | . 3 4 Penetration Max . | . . . Secondary Targets 1 | . 1 . Max Gunslinging Chain 1 | . 1 . Shots Hit Robots 49 | . 42 7 Core Hits 22 | . 19 3 Critical Kills 1 | . 1 . Critical Parts Destroyed . | . . . Critical Strikes 1 | . 1 . Destroy 1 | . 1 . Melee Attacks . | . . . Impact . | . . . Slashing . | . . . Piercing . | . . . Sneak Attacks . | . . . Combat Hostiles . | . . . Follow-up Attacks . | . . . Damage Inflicted 660 | . 580 80 Guns 498 | . 429 69 Cannons . | . . . Explosions 151 | . 151 . Melee . | . . . Ramming 11 | . . 11 Kinetic 453 | . 429 24 Thermal . | . . . Explosive 151 | . 151 . Electromagnetic 45 | . . 45 Impact . | . . . Slashing . | . . . Piercing . | . . . Highest Corruption . | . . . Average Corruption . | . . . Corruption Purged . | . . . Corruption Blocked . | . . . Overload Shots . | . . . Overflow Damage . | . . . Projectiles . | . . . Explosions . | . . . Melee . | . . . Knockbacks . | . . . Impact . | . . . Kinetic . | . . . Secondary . | . . . Self-Inflicted Damage 33 | . 33 . Shots 2 | . 2 . Rammed 2 | . . 2 Targets Rammed 2 | . . 2 Kicked . | . . . Crushed . | . . . Highest Temperature 50 | . 28 50 Average Temperature 14 | . 11 20 Received Heat Transfer 306 | . 288 18 Siege Activations . | . . . Martial Activations . | . . . Shielding Activations . | . . . Robots Disrupted . | . . . Combat Hostiles . | . . . Robots Corrupted . | . . . Combat Hostiles . | . . . Parts Fried . | . . . Impact Corruptions . | . . . Robots Melted . | . . . Combat Hostiles . | . . . Parts Melted . | . . . Heat Transferred . | . . . Parts Sabotaged . | . . . Parts Stolen . | . . . Parts Stripped . | . . . Power Chain Reactions . | . . . Alert | -11 -10 -10 ------- Run | Yrd Mat Min Maximum Alert Level . | . . . Low Security (%) 100 | 100 100 100 Level 1 . | . . . Level 2 . | . . . Level 3 . | . . . Level 4 . | . . . Level 5 . | . . . High Security . | . . . Max Security . | . . . Peak Influence 92 | . 92 19 Initial 19 | . . 19 Average 11 | . 25 1 Influence Increases 297 | . 282 15 Destroy 0b10 Robot/C 120 | . 120 . Destroy 0b10 Robot/NC 25 | . 25 . Destroy Leader 32 | . 32 . Successful Hack 32 | . 32 . Disable Machine 30 | . 30 . Destroy Structure 43 | . 43 . Lose Combat Pursuer 15 | . . 15 Influence Decreases 297 | . 231 66 Entered New Map 32 | . . 32 Time Decay 225 | . 191 34 Lost Part 40 | . 40 . Squads Dispatched 1 | . 1 . Investigation 1 | . 1 . Extermination . | . . . Reinforcement . | . . . Assault . | . . . Garrison . | . . . Intercept . | . . . Searches Triggered . | . . . Construction Impeded . | . . . Haulers Reinforced . | . . . Active Scanning Responses . | . . . Cargo Convoy Interrupts . | . . . Stealth | -11 -10 -10 --------- Run | Yrd Mat Min Distress Signals 1 | . . 1 Communications Jammed . | . . . Distress Signals . | . . . Times Spotted 16 | . 11 5 Peak Tracking Total 4 | . 4 2 Tactical Retreats 1 | . . 1 Traps | -11 -10 -10 ------- Run | Yrd Mat Min Traps Triggered 2 | . 2 . Indirectly . | . . . Trap Hack Attempts . | . . . Triggered . | . . . Disarmed . | . . . Reprogrammed . | . . . Reused . | . . . Traps Extracted . | . . . Installed . | . . . Triggered . | . . . Machines | -11 -10 -10 ---------- Run | Yrd Mat Min Machines Disabled 3 | . 3 . Max in Single Turn 1 | . 1 . Machines Repaired . | . . . Machines Dismantled . | . . . Machines Sabotaged . | . . . Overloaded Fab Kills . | . . . Hacking | -11 -10 -10 --------- Run | Yrd Mat Min Machines Accessed 7 | . 7 . Terminals 7 | . 7 . Fabricators . | . . . Repair Stations . | . . . Recycling Units . | . . . Scanalyzers . | . . . Garrison Access . | . . . Total Hacks 20 | . 20 . Successful 7 | . 7 . Failed 13 | . 13 . Catastrophic 1 | . 1 . Database Lockouts . | . . . Manual 1 | . 1 . Terminals 20 | . 20 . Fabricators . | . . . Repair Stations . | . . . Recycling Units . | . . . Scanalyzers . | . . . Garrison Access . | . . . Terminal Hacks 6 | . 6 . Robot Analysis 2 | . 2 . Prototype ID Bank 1 | . 1 . Emergency Access Points 1 | . 1 . Locate Traps 1 | . 1 . Dispatch Records 1 | . 1 . Fabricator Hacks . | . . . Repair Station Hacks . | . . . Recycling Unit Hacks . | . . . Scanalyzer . | . . . Garrison Access Hacks . | . . . Unauthorized Hacks 1 | . 1 . Terminals 1 | . 1 . Sabotage 1 | . 1 . Fabricators . | . . . Repair Stations . | . . . Recycling Units . | . . . Scanalyzers . | . . . Garrison Access . | . . . Data Cores Recovered 1 | . 1 . Used . | . . . Hacking Detections 6 | . 6 . Full Trace Events . | . . . Feedback Events . | . . . Feedback Blocked . | . . . Robot Schematics Acquired . | . . . Robots Built . | . . . Authchips . | . . . Time . | . . . Total Robot Build Rating . | . . . Part Schematics Acquired . | . . . Parts Built . | . . . Authchips . | . . . Time . | . . . Total Part Build Rating . | . . . Part Studies Acquired . | . . . Parts Repaired . | . . . Time . | . . . Parts Recycled . | . . . Recycled Matter . | . . . Retrieved Matter . | . . . Retrieved Components . | . . . Parts Scanalyzed . | . . . Part Schematics Acquired . | . . . Parts Damaged . | . . . Bothacking | -11 -10 -10 ------------ Run | Yrd Mat Min Used RIF Installer . | . . . Robots Hacked . | . . . Non-combat . | . . . Combat . | . . . Robot Hacks Applied . | . . . Relay Couplers Released . | . . . Fabnet Peak Effective % . | . . . Robots Rewired . | . . . Allies Hacked . | . . . Hacks Repelled . | . . . Allies | -11 -10 -10 -------- Run | Yrd Mat Min Total Allies . | . . . Largest Group . | . . . Highest-Rated Group . | . . . Highest-Rated Ally . | . . . Total Orders . | . . . Ally Attacks . | . . . Total Damage . | . . . Kills . | . . . Allies Corrupted . | . . . Allies Melted . | . . . Intel | -11 -10 -10 ------- Run | Yrd Mat Min Active Infowar (turns) . | . . . Robot Analysis Total 2 | . 2 . Derelict Logs Recovered 2 | . . 2 Drone Launches . | . . . Drone Recoveries . | . . . Exploration | -11 -10 -10 ------------- Run | Yrd Mat Min Turns Passed 1830 | 52 802 976 Spaces Moved 1106 | 37 659 410 Core 3 | 3 . . Treads 354 | . . 354 Legs 1 | . . 1 Wheels 737 | 34 659 44 Hover . | . . . Flight 11 | . . 11 Fastest Speed 37 | 50 90 37 Average Speed 141 | 97 98 216 Slowest Speed 240 | 100 105 240 Overloaded Moves . | . . . Propulsion Burnouts . | . . . Robots Hopped . | . . . Potential Cave-ins . | . . . Cave-ins Triggered . | . . . Exploration Rate (%) 49 | 4 85 58 Regions Visited 2 Branch Regions 1 Pre-discovered Areas 1 | . . 1 Known Exits Taken 1 | . 1 . Unknown Exits Taken 1 | 1 . . Scrap Searched 1 | . . 1 Spaces Dug 8 | . 8 . Terrain Destroyed 42 | . 42 . Melee . | . . . Projectile . | . . . AOE 42 | . 42 . Terrain Rammed . | . . . Walls Destroyed . | . . . Machines Disabled . | . . . Actions | -11 -10 -10 --------- Run | Yrd Mat Min Total 1290 | 49 755 486 Wait 70 | . 29 41 Move 1104 | 36 658 410 Hop . | . . . Pick Up 21 | 5 10 6 Fast Attach 12 | 6 3 3 Attach 9 | . 3 6 Detach 3 | . . 3 Swap 12 | 2 6 4 Drop 11 | . 7 4 Fire 46 | . 39 7 Melee . | . . . Ram . | . . . Kick . | . . . Crush 2 | . . 2 Escape Stasis . | . . . Rewire . | . . . Trap . | . . . Miscellaneous . | . . . Route ------- -11/Scrapyard -10/Materials (discovered 5 exits: *Mat x3 / *Min / *Sub) -10/Mines (discovered 1 exit: *Mat) History --------- Turn | Location | Event 25 | -11/Scrapyard | Discovered new exit (range 15) 53 | -11/Scrapyard | Entered Materials 99 | -10/Materials | Discovered new exit (range 15) 138 | -10/Materials | Identified exit to Mines 332 | -10/Materials | Discovered new exit (range 8) 333 | -10/Materials | Build established: Mutant 338 | -10/Materials | Identified exit to Materials 396 | -10/Materials | Discovered exit to Materials (range 14) 620 | -10/Materials | Discovered exit to Materials (range 12) 692 | -10/Materials | Core integrity fell below 50% 712 | -10/Materials | Discovered new exit (range 8) 713 | -10/Materials | Lost 4 parts (1p1n2w) 717 | -10/Materials | Identified exit to Subcaves 855 | -10/Materials | Entered Mines 856 | -10/Mines | Discovered exit to Materials (range 10) 897 | -10/Mines | Joined a pair of Derelicts in attacking an 0b10 outpost 1076 | -10/Mines | Found a hidden stash of uninstalled traps 1131 | -10/Mines | Learned 4 Materials zone layouts 1150 | -10/Mines | Found a damaged Exp. Sensor Array with a note attached 1155 | -10/Mines | Found Prototype Device 1224 | -10/Mines | Assembled infested the area 1562 | -10/Mines | Learned location of Zion (-7) 1830 | -10/Mines | Core integrity fell below 20% 1831 | -10/Mines | Destroyed by D-53 Grenadier with Mini Grenade Launcher Last Messages --------------- 01571_ Found Com. Wheel. 01571_ Found 52 Matter. 01607_ Acquired Structural Scanner. 01678_ K-01 Serf cleans the Seismic Survey Station. 01728_ The unstable cave ceiling collapses. 01728_ D-53 Grenadier destroyed. 01729_ The unstable cave ceiling collapses. 01740_ K-01 Serf collects debris. 01742_ The unstable cave ceiling collapses. 01744_ K-01 Serf collects debris. 01746_ The unstable cave ceiling collapses. 01747_ K-01 Serf collects debris. 01752_ The unstable cave ceiling collapses. 01753_ K-01 Serf collects debris. 01777_ K-01 Serf cleans the Seismic Survey Station. 01821_ Seismic Survey Station disabled. 01825_ Lgt. Assault Rifle destroyed. 01827_ EM Pulse Gun destroyed. 01827_ Lgt. Treads destroyed. 01830_ The unstable cave ceiling collapses. Map ----- +----------------------------------------------------+ | ??????????????????????????????????????????????##& | | ???????????????????????????????????????????????# # | | ???????????????????????????????????????????????# # | | ????????????????????????????????################ # | | ????????????????????????????????# !% [ # | | ????????????????????????????????# ################ | | ????????????????????????????????# #??????????????? | | ???????????????????######???????# #??????????????? | | ?????????????????### ##??????# #??????????????? | | ?????????????????# ##?????# #??????????????? | | ????????????????### # #?????# #??????????????? | | ????????????# ## # #?????# #??????????????? | | ????????????# % #?????# #??????????????? | | ???????????# %%## ## #?????# ###########????? | | ????????????????# ### #?????# #????# | | ??????????????? # # ###?????# ######### #????# | | ????????????? # ###?????# #???????# #????# | | ????????????# #### #?????# #???????# #????# | | ????????????## ????####r####### #???????# #????# | | ?????????????# ????????# % #???????# #????# | | ?????????????# ?????????# #########???????# #????# | | ?????????????#????????### ###?????????????# ###### | | ?????????????????????## #d ##????????????# | | ????????????????????## # ##???????????######## | | ????????????????????# #???###????????????# | | ????????????????????# @ #??## ##??####????? | | ????????????????????# #??# #### ##???? | | ????????????????????# ##??# ## ##??? | | ????????????????????# #??# #??? | | ????????????????????## ###### #### | | ?????????????????????## " ### | | ??????????????????????# ####!#?# ########## | | ??????????????????????# #??#%### #?????????? | | ??????????????????????# #####=## #?????????? | | ?????????????????????## ### #?????????? | | ????????????????????## #?????????? | | ????????????????????# #### ##?????????? | | ????????????????????# #??####??????????? | | ????????????????????# ##????????????????? | | ????????????????????# ##?????????????????? | | ????????????????????## ######??????????????????? | | ?????????????????????#####???????????????????????? | | ?????????????????????????????????????????????????? | | | | | | | | | | | | | | | +----------------------------------------------------+ Best States ------------- Heat Dissipation 25 Energy Generation 12 Energy Capacity 265 Matter Stores 300 Matter Capacity 300 Sight Range 16 Terrain Scan Density 10 Evasion (%) 62 Recoil Reduction 1 Item Schematics ----------------- None Robot Schematics ------------------ None Fabricated ------------ Nothing Repaired ---------- Nothing Studied --------- None Alien Tech Used ----------------- None Achievements -------------- None Challenges ------------ None Game ------ Seed SuperdenseShadeSystem Manual? 0 Play Time 00:16:18 Cumulative 221.0 hours Start 2026.01.10 @ 16:31:43 End 2026.01.10 @ 16:44:54 Sessions 1 Manual Loads 0 Difficulty Rogue Special Mode None Game No. 167 Rogue 41 Adventurer 47 Explorer 79 Win Type - Total 33 Types 23/2/7/1/0/0/0/0/0/0 Lore% 54 Gallery% 69 Achievement% 44 Wizard Run 0 Options --------- Layout 0 ASCII 0 Keyboard 0 Movement Numpad Keybinds 0 Fullscreen 2 Font 18/SmallcapsGlow Map View 76x50 Zoom Use 0% Tactical HUD 1 Map Filters NONE Filters NONE Steam 1 RUN: 4dd92358-9998-469a-bb02-046848ee9135